bitfinex/quotes_SOLUSD_20240613
["timestamp","ask_amount","ask_price","bid_price","bid_amount"]
[1718279648313,22.4713,149.44,149.32,2.4777]
[1718279648643,22.4713,149.44,149.31,25.0379]
[1718279650521,100.0,149.43,149.31,25.0379]
[1718279650725,100.0,149.43,149.31,22.56]
[1718279651634,6.9677418,149.42,149.31,22.56]
[1718279652910,6.9677418,149.42,149.32,2.4778]
[1718279653234,6.9677418,149.42,149.31,25.0379]
[1718279653614,6.9677418,149.42,149.31,22.56]
[1718279654911,6.9677418,149.42,149.31,25.038]
[1718279655327,6.9677418,149.42,149.32,2.4778]
[1718279655618,10.0,149.43,149.32,2.4778]
[1718279655824,10.0,149.43,149.33,0.17]
[1718279656225,110.0,149.43,149.31,25.0379]
[1718279656425,110.0,149.43,149.31,22.56]
[1718279656837,110.0,149.43,149.3,3.4328592]
[1718279658347,110.0,149.43,149.31,0.17]
[1718279658664,110.0,149.43,149.31,3.1579]
[1718279658822,7.53,149.41,149.35,7.53]
[1718279659820,7.53,149.41,149.34,7.53]
[1718279660019,10.0,149.43,149.36,7.53]
[1718279660326,7.53,149.42,149.36,7.53]
[1718279660735,17.53,149.43,149.37,7.53]
[1718279661947,10.0,149.43,149.39,7.53]
[1718279662134,17.53,149.43,149.33,0.17]
[1718279662340,7.53,149.42,149.33,0.68]
[1718279662641,10.0,149.43,149.35,7.53]
[1718279662849,7.53,149.41,149.35,7.53]
[1718279663427,110.0,149.43,149.35,7.53]
[1718279663627,7.53,149.41,149.35,7.53]
[1718279664129,7.53,149.42,149.36,7.53]
[1718279665530,7.53,149.42,149.31,20.17]
[1718279665727,7.53,149.42,149.32,0.51]
[1718279666049,110.0,149.43,149.35,7.53]
[1718279666050,7.53,149.41,149.35,7.53]
[1718279666745,7.53,149.42,149.36,7.53]
[1718279667652,7.53,149.41,149.35,7.53]
[1718279668326,7.53,149.41,149.32,0.17]
[1718279668531,7.53,149.41,149.35,7.53]
[1718279669040,7.53,149.4,149.31,30.29]
[1718279669238,7.53,149.4,149.34,7.53]
[1718279669642,7.53,149.41,149.35,7.53]
[1718279670455,7.53,149.41,149.31,32.768]
[1718279670753,7.53,149.4,149.34,7.53]
[1718279671450,110.0,149.43,149.34,7.53]
[1718279671753,7.53,149.41,149.35,7.53]
[1718279672153,7.53,149.4,149.34,7.53]
[1718279672459,10.0,149.43,149.35,7.53]
[1718279672651,10.0,149.43,149.32,2.4778]
[1718279672652,7.53,149.41,149.36,7.53]
[1718279672960,17.53,149.43,149.37,7.53]
[1718279673941,10.0,149.43,149.37,7.53]
[1718279674126,17.53,149.43,149.37,7.53]
[1718279674846,17.53,149.43,149.32,2.4778]
[1718279675150,7.53,149.42,149.33,0.51]
[1718279675355,7.53,149.42,149.36,7.53]
[1718279676129,17.53,149.43,149.37,7.53]
[1718279678253,10.0,149.43,149.37,7.53]
[1718279679063,17.53,149.43,149.37,7.53]
[1718279679732,17.53,149.43,149.34,0.17]
[1718279679934,10.0,149.43,149.37,7.53]
[1718279680237,17.53,149.43,149.37,7.53]
[1718279680955,17.53,149.43,149.33,0.51]
[1718279681139,7.53,149.42,149.32,20.0]
[1718279681338,110.0,149.43,149.31,30.12]
[1718279681548,10.0,149.43,149.37,7.53]
[1718279681736,7.53,149.42,149.36,7.53]
[1718279682635,7.53,149.42,149.32,22.4778]
[1718279682948,7.53,149.42,149.36,7.53]
[1718279689760,10.0,149.43,149.36,7.53]
[1718279689959,17.53,149.43,149.36,7.53]
[1718279690276,10.0,149.42,149.36,7.53]
[1718279690772,10.0,149.42,149.4,7.53]
[1718279691885,10.0,149.42,149.41,7.53]
[1718279693065,10.0,149.42,149.33,10.0806]
[1718279693066,10.0,149.42,149.4,7.53]
[1718279693464,10.0,149.42,149.36,0.17]
[1718279693656,10.0,149.42,149.39,7.53]
[1718279695465,17.53,149.42,149.36,7.53]
[1718279696951,17.53,149.42,149.37,7.53]
[1718279697172,10.0,149.42,149.37,7.53]
[1718279697378,10.0,149.42,149.38,7.53]
[1718279697761,10.0,149.42,149.34,2.4774]
[1718279698178,10.0,149.42,149.38,7.53]
[1718279700063,10.0,149.42,149.34,2.4774]
[1718279700266,10.0,149.42,149.38,7.53]
[1718279700780,10.0,149.42,149.39,7.53]
[1718279701158,10.0,149.42,149.41,7.53]
[1718279701963,10.0,149.42,149.38,30.12]
[1718279702169,10.0,149.42,149.41,7.53]
[1718279702373,10.0,149.42,149.37,2.647]
[1718279702580,10.0,149.42,149.41,7.53]
[1718279703688,10.0,149.42,149.38,30.12]
[1718279703875,10.0,149.42,149.41,7.53]
[1718279704773,17.53,149.42,149.36,7.53]
[1718279704979,7.53,149.41,149.31,32.5979]
[1718279705385,7.53,149.38,149.3,0.2747592]
[1718279705567,7.53,149.38,149.32,7.53]
[1718279706190,7.53,149.38,149.3,0.2747592]
[1718279706488,110.0,149.42,149.3,0.2747592]
[1718279706489,7.53,149.37,149.3,0.2747592]
[1718279706697,107.53,149.38,149.3,0.2747592]
[1718279707015,7.53,149.32,149.3,0.2747592]
[1718279707571,22.5844,149.31,149.3,0.2747592]
[1718279707873,30.1144,149.31,149.3,0.2747592]
[1718279708197,52.5844,149.31,149.3,0.2747592]
[1718279710495,100.0,149.28,149.16,2.4804]
[1718279710810,21.9405,149.25,149.15,0.804936]
[1718279710972,100.0,149.24,149.15,0.804936]
[1718279711294,100.0,149.18,149.15,0.804936]
[1718279711493,100.0,149.16,149.03,2.4827]
[1718279711700,100.0,149.16,149.04,9.4954]
[1718279711944,100.0,149.2,149.04,29.5854]
[1718279712065,100.0,149.22,149.07,25.1019]
[1718279712269,0.17,149.17,149.04,9.4954]
[1718279712484,6.96316221,149.19,149.06,22.62]
[1718279712695,6.96316221,149.19,149.09,22.62]
[1718279712876,100.0,149.22,149.09,22.62]
[1718279713383,21.7323,149.23,149.11,22.62]
[1718279713590,106.363,149.28,149.16,2.4804]
[1718279713780,6.363,149.28,149.15,0.17]
[1718279713993,30.0,149.31,149.18,0.17]
[1718279714196,30.0,149.31,149.21,2.4797]
[1718279714497,30.0,149.31,149.2,25.2698]
[1718279714697,6.96621634,149.32,149.21,20.0]
[1718279714878,6.96621634,149.32,149.22,2.4795]
[1718279715085,6.363,149.33,149.23,0.34]
[1718279715276,15.3693,149.35,149.24,2.649]
[1718279715468,28.7131,149.38,149.24,2.649]
[1718279715469,106.0931,149.38,149.26,2.4787]
[1718279715694,106.0931,149.38,149.25,2.989]
[1718279715868,6.96536518,149.37,149.25,0.51]
[1718279716197,6.96536518,149.37,149.28,2.4785]
[1718279716398,10.0,149.41,149.28,0.17]
[1718279716692,10.0,149.41,149.3,2.4782]
[1718279716910,10.0,149.41,149.31,0.68]
[1718279717071,10.0,149.41,149.33,0.17]
[1718279717371,10.0,149.41,149.31,25.726]
[1718279717573,10.0,149.41,149.36,0.17]
[1718279717786,10.0,149.41,149.36,3.1572]
[1718279718309,10.0,149.41,149.39,2.4767]
[1718279718591,10.0,149.41,149.4,3.1565]
[1718279718798,10.0,149.41,149.4,27.8596]
[1718279718983,0.804936,149.52,149.41,0.17]
[1718279719173,0.804936,149.52,149.43,0.17]
[1718279719374,0.804936,149.52,149.42,0.17]
[1718279719613,0.804936,149.52,149.43,0.17]
[1718279719774,0.804936,149.52,149.46,0.17]
[1718279719975,0.804936,149.52,149.45,0.34]
[1718279720206,0.804936,149.52,149.44,0.17]
[1718279720407,0.804936,149.52,149.42,0.17]
[1718279720577,0.804936,149.52,149.42,0.68]
[1718279720779,0.804936,149.52,149.45,0.17]
[1718279720977,0.804936,149.52,149.45,0.68]
[1718279721179,0.804936,149.52,149.42,0.34]
[1718279721676,0.804936,149.52,149.37,2.477]
[1718279721677,100.804936,149.52,149.37,2.477]
[1718279721876,100.804936,149.52,149.34,4.955]
[1718279722099,100.804936,149.52,149.42,2.4762]
[1718279722100,0.804936,149.52,149.42,2.4762]
[1718279722284,0.804936,149.52,149.38,29.9975]
[1718279722480,0.804936,149.52,149.41,20.09]
[1718279722704,0.804936,149.52,149.45,2.4757]
[1718279723093,0.804936,149.52,149.46,0.68]
[1718279723299,0.804936,149.52,149.44,0.17]
[1718279723616,0.804936,149.52,149.44,45.68]
[1718279724097,0.804936,149.52,149.47,0.17]
[1718279724403,0.804936,149.52,149.47,0.34]
[1718279724795,0.804936,149.52,149.44,0.17]
[1718279724996,0.804936,149.52,149.44,0.51]
[1718279725197,0.804936,149.52,149.39,28.8366]
[1718279725391,0.804936,149.52,149.33,16.1529]
[1718279725392,100.804936,149.52,149.33,16.1529]
[1718279725583,100.0,149.49,149.33,16.1529]
[1718279725785,100.0,149.49,149.36,2.4772]
[1718279725981,100.0,149.47,149.33,16.1529]
[1718279726289,20.0,149.48,149.35,2.4773]
[1718279726592,20.0,149.48,149.37,2.477]
[1718279726801,100.0,149.47,149.31,53.0534]
[1718279727007,100.0,149.47,149.34,2.4775]
[1718279727008,100.17,149.47,149.34,2.4775]
[1718279727704,0.17,149.46,149.31,32.9434]
[1718279727895,100.17,149.47,149.32,20.0]
[1718279728096,20.0,149.48,149.33,22.2991]
[1718279728409,100.0,149.49,149.36,2.4771]
[1718279728790,100.0,149.49,149.35,2.4773]
[1718279729023,100.0,149.46,149.33,22.4777]
[1718279729319,100.0,149.46,149.31,32.9434]
[1718279729320,100.51,149.48,149.34,2.4775]
[1718279729480,100.0,149.48,149.36,2.4772]
[1718279730203,646.2,149.5,149.36,2.4772]
[1718279730204,746.2,149.5,149.36,2.4771]
[1718279730510,746.2,149.5,149.37,0.68]
[1718279730691,646.2,149.5,149.38,2.4768]
[1718279730892,646.2,149.5,149.37,3.1569]
[1718279731104,746.2,149.5,149.37,0.68]
[1718279731312,746.2,149.5,149.32,12.3892]
[1718279731616,0.17,149.47,149.33,2.4776]
[1718279731815,45.17,149.47,149.31,40.3774]
[1718279732120,45.17,149.47,149.35,2.4773]
[1718279732121,45.0,149.47,149.35,2.4773]
[1718279732286,100.0,149.48,149.34,2.4774]
[1718279732487,100.0,149.46,149.32,2.4778]
[1718279732711,65.17,149.47,149.3,4.9563]
[1718279732712,100.0,149.44,149.3,2.4781]
[1718279733086,100.0,149.44,149.31,2.478]
[1718279733287,106.9685429,149.44,149.31,2.478]
[1718279733484,100.0,149.42,149.26,15.4548]
[1718279733689,20.0,149.41,149.26,15.4548]
[1718279733896,20.0,149.41,149.29,2.4783]
[1718279734110,20.0,149.41,149.26,15.4548]
[1718279734111,20.0,149.41,149.28,2.4784]
[1718279734313,20.0,149.41,149.26,15.4548]
[1718279734519,20.0,149.41,149.28,2.4784]
[1718279734994,20.0,149.41,149.29,0.68]
[1718279735190,20.0,149.41,149.28,2.4784]
[1718279735495,145.17,149.4,149.27,2.4786]
[1718279735800,145.51,149.4,149.28,2.4785]
[1718279736002,20.0,149.41,149.29,2.4782]
[1718279736221,20.0,149.41,149.28,2.4785]
[1718279736398,20.0,149.41,149.28,2.4784]
[1718279736794,100.0,149.4,149.25,6.6162]
[1718279737024,45.0,149.39,149.27,0.17]
[1718279737248,100.0,149.4,149.28,2.4785]
[1718279737523,30.17,149.41,149.27,20.17]
[1718279737707,10.0,149.41,149.3,0.17]
[1718279738019,100.0,149.4,149.28,0.17]
[1718279738243,100.0,149.4,149.28,3.1585]
[1718279739307,100.0,149.4,149.28,0.68]
[1718279739509,100.0,149.4,149.28,3.1584]
[1718279739718,100.0,149.4,149.28,48.1584]
[1718279740191,100.0,149.4,149.28,0.68]
[1718279740617,100.0,149.4,149.28,3.1584]
[1718279741122,10.0,149.41,149.31,2.4779]
[1718279741314,10.0,149.41,149.3,0.68]
[1718279741504,10.0,149.41,149.3,0.51]
[1718279742641,10.0,149.41,149.3,2.9882]
[1718279742939,10.0,149.41,149.3,0.51]
[1718279743111,10.0,149.41,149.3,2.9882]
[1718279743507,10.0,149.41,149.31,2.6479]
[1718279744037,10.0,149.41,149.31,0.17]
[1718279744243,10.0,149.41,149.32,0.17]
[1718279744413,10.0,149.41,149.32,0.51]
[1718279744815,10.0,149.41,149.34,2.4775]
[1718279745443,10.0,149.41,149.34,0.17]
[1718279745771,10.0,149.41,149.34,0.34]
[1718279746507,10.0,149.41,149.33,0.17]
[1718279746839,10.0,149.41,149.3,2.648]
[1718279747009,10.0,149.41,149.32,0.17]
[1718279747632,10.0,149.41,149.32,2.6478]
[1718279747834,10.0,149.41,149.32,67.6478]
[1718279748631,10.0,149.41,149.32,65.17]
[1718279749727,10.0,149.41,149.32,67.6478]
[1718279750668,10.0,149.41,149.32,65.17]
[1718279750831,10.0,149.41,149.34,0.17]
[1718279752533,10.0,149.41,149.34,2.6475]
[1718279752734,10.0,149.41,149.34,47.6475]
[1718279753140,10.0,149.41,149.34,2.6475]
[1718279753341,10.0,149.41,149.33,0.34]
[1718279753542,10.0,149.41,149.31,20.0]
[1718279753742,10.0,149.41,149.32,45.34]
[1718279754061,10.0,149.41,149.26,26.36]
[1718279754062,110.0,149.41,149.26,26.36]
[1718279754357,110.0,149.41,149.28,2.4784]
[1718279754944,10.0,149.41,149.27,9.9147]
[1718279755161,10.0,149.41,149.3,2.4781]
[1718279755339,10.0,149.41,149.31,0.68]
[1718279756353,100.0,149.4,149.27,2.4785]
[1718279756544,100.0,149.4,149.28,2.4784]
[1718279756747,10.0,149.41,149.29,2.4783]
[1718279757138,100.0,149.4,149.28,2.4784]
[1718279757678,100.0,149.4,149.29,0.68]
[1718279758768,100.0,149.38,149.25,22.5962]
[1718279758935,100.0,149.38,149.25,25.0751]
[1718279759371,100.0,149.38,149.26,2.4788]
[1718279759753,100.0,149.38,149.25,25.0751]
[1718279759943,100.0,149.38,149.26,0.51]
[1718279760265,145.51,149.4,149.27,2.4786]
[1718279760436,20.0,149.39,149.27,2.4786]
[1718279760636,100.0,149.37,149.25,6.6162]
[1718279760874,20.0,149.39,149.21,6.3283]
[1718279760875,100.0,149.35,149.21,6.3283]
[1718279761041,100.0,149.35,149.22,2.4794]
[1718279761455,45.34,149.36,149.23,2.4793]
[1718279761648,100.0,149.37,149.26,2.4788]
[1718279762078,120.0,149.39,149.27,0.17]
[1718279762286,120.0,149.39,149.26,5.1276]
[1718279762453,385.4062,149.41,149.26,5.1276]
[1718279762773,385.4062,149.41,149.28,2.4784]
[1718279762971,385.4062,149.41,149.29,0.17]
[1718279763148,385.4062,149.41,149.28,0.34]
[1718279763349,385.4062,149.41,149.29,2.6482]
[1718279763552,385.4062,149.41,149.3,0.17]
[1718279763751,100.0,149.36,149.21,26.4183]
[1718279764049,100.0,149.4,149.27,2.4786]
[1718279764381,100.0,149.4,149.28,2.4785]
[1718279764382,20.0,149.39,149.28,2.4785]
[1718279764892,285.4062,149.41,149.31,0.17]
[1718279765190,100.0,149.4,149.3,6.3957]
[1718279765363,100.0,149.4,149.29,15.9273]
[1718279765563,100.0,149.4,149.26,8.734]
[1718279765855,100.0,149.38,149.27,0.17]
[1718279766082,100.0,149.36,149.26,6.0852]
[1718279766667,100.0,149.38,149.26,6.0852]
[1718279766974,0.34,149.39,149.26,6.0852]
[1718279766975,100.0,149.36,149.26,6.0852]
[1718279767158,100.0,149.34,149.23,6.1453]
[1718279767475,45.0,149.37,149.23,8.6246]
[1718279767476,20.0,149.33,149.23,8.6246]
[1718279767651,20.0,149.35,149.23,8.6246]
[1718279767854,20.0,149.35,149.23,6.1453]
[1718279768092,20.0,149.36,149.24,2.4791]
[1718279768384,100.0,149.38,149.24,2.4791]
[1718279768385,100.0,149.38,149.26,2.4787]
[1718279768592,100.0,149.36,149.25,45.68]
[1718279768755,100.0,149.36,149.25,0.68]
[1718279768960,100.0,149.38,149.27,2.4786]
[1718279769290,100.0,149.38,149.25,20.51]
[1718279769600,100.0,149.38,149.25,0.51]
[1718279770296,100.0,149.38,149.25,2.989]
[1718279770594,385.4062,149.41,149.28,0.17]
[1718279770793,100.0,149.39,149.27,0.17]
[1718279771095,385.4062,149.41,149.28,2.6485]
[1718279771270,385.4062,149.41,149.28,0.17]
[1718279771468,385.4062,149.41,149.28,2.6484]
[1718279771673,385.4062,149.41,149.29,0.34]
[1718279771982,385.4062,149.41,149.29,2.8183]
[1718279772493,285.4062,149.41,149.29,0.34]
[1718279772675,285.4062,149.41,149.3,0.51]
[1718279772871,125.5062,149.41,149.3,0.34]
[1718279773267,125.5062,149.41,149.29,45.17]
[1718279773580,125.5062,149.41,149.28,0.51]
[1718279773781,100.0,149.37,149.23,6.1453]
[1718279773995,100.0,149.37,149.24,22.4791]
[1718279774186,100.0,149.37,149.25,2.479]
[1718279774499,125.5062,149.41,149.27,2.4786]
[1718279774708,100.0,149.38,149.24,20.0]
[1718279774875,100.0,149.38,149.25,2.4789]
[1718279775200,100.0,149.38,149.26,0.51]
[1718279775406,100.0,149.38,149.26,2.9888]
[1718279775771,145.0,149.4,149.26,0.51]
[1718279775975,100.0,149.4,149.28,2.4785]
[1718279776210,25.5062,149.41,149.28,2.4785]
[1718279776384,25.5062,149.41,149.28,0.17]
[1718279776385,120.0,149.4,149.28,0.17]
[1718279776585,120.0,149.4,149.28,0.51]
[1718279777102,20.0,149.4,149.28,2.9885]
[1718279777395,20.0,149.4,149.3,0.17]
[1718279777699,20.0,149.4,149.31,6.1392]
[1718279777904,10.0,149.41,149.31,6.1392]
[1718279779179,10.0,149.41,149.3,15.4588]
[1718279779180,100.0,149.39,149.3,15.4588]
[1718279779504,100.0,149.37,149.27,6.409]
[1718279779725,45.0,149.38,149.27,6.409]
[1718279781532,100.0,149.37,149.27,6.409]
[1718279781827,100.0,149.39,149.27,6.409]
[1718279782193,100.0,149.39,149.28,0.17]
[1718279782430,100.0,149.39,149.28,0.51]
[1718279782926,16.96671492,149.4,149.28,2.9884]
[1718279783092,16.96671492,149.4,149.3,0.17]
[1718279783414,10.0,149.4,149.3,0.51]
[1718279783628,16.96513105,149.4,149.3,0.51]
[1718279784520,16.96513105,149.4,149.28,0.17]
[1718279784725,16.96513105,149.4,149.28,2.9885]
[1718279785027,16.96513105,149.4,149.28,2.8185]
[1718279785233,16.96513105,149.4,149.28,0.34]
[1718279786099,100.0,149.37,149.27,6.409]
[1718279786303,0.17,149.39,149.27,6.409]
[1718279786304,100.0,149.39,149.27,6.409]
[1718279786927,100.0,149.37,149.27,6.409]
[1718279787621,100.0,149.39,149.27,6.409]
[1718279787846,100.0,149.37,149.27,6.409]
[1718279788132,100.0,149.39,149.27,6.409]
[1718279788339,100.0,149.37,149.27,6.409]
[1718279789509,100.0,149.34,149.27,6.409]
[1718279789737,45.34,149.36,149.27,6.409]
[1718279790048,20.0,149.35,149.27,6.409]
[1718279790615,20.0,149.37,149.27,6.409]
[1718279790815,386.3,149.39,149.27,8.8876]
[1718279791113,100.0,149.38,149.27,6.409]
[1718279791515,386.3,149.39,149.27,6.409]
[1718279791723,386.3,149.39,149.28,45.68]
[1718279792544,116.96513105,149.4,149.28,45.68]
[1718279793147,116.96513105,149.4,149.27,6.409]
[1718279793513,116.96513105,149.4,149.28,0.17]
[1718279793725,116.96513105,149.4,149.28,0.34]
[1718279794148,100.0,149.38,149.27,6.409]
[1718279794747,45.34,149.39,149.27,6.409]
[1718279794952,6.95679348,149.38,149.27,6.409]
[1718279795865,106.95679348,149.38,149.27,6.409]
[1718279796171,100.0,149.35,149.22,6.0792]
[1718279796461,20.0,149.34,149.22,8.5587]
[1718279796672,6.95679348,149.38,149.22,26.1692]
[1718279796852,6.95679348,149.38,149.28,21.2156]
[1718279797863,100.0,149.35,149.28,21.2156]
[1718279798164,100.0,149.35,149.16,6.3835]
[1718279798165,100.0,149.25,149.16,6.3835]
[1718279798355,100.0,149.26,149.16,6.3835]
[1718279798565,9.85927175,149.24,149.16,6.3835]
[1718279798965,9.85927175,149.23,149.16,6.3835]
[1718279799137,9.85927175,149.22,149.16,6.3835]
[1718279799685,9.85927175,149.23,149.16,6.3835]
[1718279800056,9.85927175,149.23,149.16,8.864]
[1718279800381,9.85927175,149.24,149.16,6.3835]
[1718279800576,9.85465335,149.25,149.16,6.3835]
[1718279800884,486.3,149.3,149.16,8.864]
[1718279801186,20.0,149.29,149.17,45.68]
[1718279802896,100.0,149.28,149.17,45.68]
[1718279803102,20.0,149.29,149.17,0.68]
[1718279803275,20.0,149.29,149.17,45.68]
[1718279804107,20.0,149.29,149.17,48.1603]
[1718279804288,100.0,149.3,149.17,45.68]
[1718279805191,106.96160241,149.3,149.17,45.68]
[1718279805386,106.96160241,149.3,149.17,48.1603]
[1718279805583,6.96160241,149.3,149.18,15.3619]
[1718279805801,9.85082012,149.29,149.19,65.68]
[1718279805990,9.85082012,149.3,149.21,2.4796]
[1718279806295,9.85082012,149.3,149.19,65.68]
[1718279807474,9.85082012,149.3,149.19,68.16]
[1718279807675,9.85082012,149.3,149.19,45.68]
[1718279807999,109.85082012,149.3,149.19,0.51]
[1718279808201,109.85082012,149.3,149.19,0.17]
[1718279808399,100.0,149.3,149.19,0.17]
[1718279808573,109.85344972,149.3,149.19,0.17]
[1718279809318,109.85344972,149.3,149.18,15.3619]
[1718279809608,20.0,149.29,149.18,15.3619]
[1718279810003,9.85344972,149.28,149.18,15.3619]
[1718279810175,9.85344972,149.29,149.18,15.3619]
[1718279810376,100.0,149.3,149.18,15.3619]
[1718279810591,100.0,149.26,149.18,15.3619]
[1718279810795,100.0,149.28,149.18,15.3619]
[1718279811017,29.85341364,149.27,149.18,15.3619]
[1718279811888,9.85341364,149.28,149.18,15.3619]
[1718279812425,9.85341364,149.29,149.18,15.3619]
[1718279814306,109.85341364,149.3,149.18,15.3619]
[1718279814534,20.0,149.29,149.18,15.3619]
[1718279815533,9.85341364,149.3,149.2,6.18]
[1718279816221,149.85341364,149.31,149.2,6.18]
[1718279816389,10.0,149.3,149.2,6.18]
[1718279817487,26.81019388,149.3,149.2,6.18]
[1718279818389,16.95678024,149.3,149.2,6.18]
[1718279819309,100.0,149.29,149.2,6.18]
[1718279820099,100.0,149.27,149.2,6.18]
[1718279820321,26.81019388,149.3,149.2,6.18]
[1718279820694,26.81350815,149.3,149.2,6.18]
[1718279821211,16.95678024,149.3,149.2,6.18]
[1718279822724,16.95678024,149.3,149.21,0.17]
[1718279822890,10.0,149.3,149.23,0.17]
[1718279823218,10.0,149.3,149.23,45.68]
[1718279823397,10.0,149.3,149.24,6.2699]
[1718279825306,10.0,149.3,149.25,0.34]
[1718279827295,10.0,149.3,149.25,0.17]
[1718279830097,10.0,149.3,149.25,2.9889]
[1718279830298,10.0,149.3,149.26,0.34]
[1718279830519,10.0,149.3,149.25,0.34]
[1718279830719,10.0,149.3,149.25,0.17]
[1718279831700,10.0,149.3,149.24,6.2699]
[1718279837840,10.0,149.3,149.25,0.51]
[1718279839217,10.0,149.3,149.24,6.2699]
[1718279840228,10.0,149.3,149.24,8.749]
[1718279840553,10.0,149.3,149.25,45.51]
[1718279840721,10.0,149.3,149.24,8.749]
[1718279841348,10.0,149.3,149.24,6.2699]
[1718279842446,10.0,149.3,149.24,8.7491]
[1718279844845,10.0,149.3,149.27,2.4787]
[1718279845058,10.0,149.3,149.27,2.6486]
[1718279845265,10.0,149.3,149.27,47.6486]
[1718279845564,10.0,149.3,149.27,2.6486]
[1718279845735,10.0,149.3,149.27,0.17]
[1718279845935,10.0,149.3,149.27,2.6487]
[1718279846143,10.0,149.3,149.27,0.17]
[1718279847037,10.0,149.3,149.27,2.6487]
[1718279848042,10.0,149.3,149.28,0.17]
[1718279849767,10.0,149.3,149.27,0.34]
[1718279850931,10.0,149.3,149.25,0.17]
[1718279851136,10.0,149.3,149.25,68.159]
[1718279851353,10.0,149.3,149.25,65.68]
[1718279851558,10.0,149.3,149.25,68.159]
[1718279852484,10.0,149.3,149.24,6.2699]
[1718279852971,10.0,149.3,149.25,0.34]
[1718279853141,10.0,149.3,149.27,0.17]
[1718279853345,10.0,149.3,149.27,0.34]
[1718279853736,10.0,149.3,149.27,0.17]
[1718279854141,10.0,149.3,149.27,0.34]
[1718279854994,10.0,149.3,149.28,2.4785]
[1718279855204,10.0,149.3,149.29,0.34]
[1718279855565,10.0,149.3,149.29,41.4467]
[1718279855874,646.2,149.36,149.32,0.17]
[1718279856098,386.3,149.36,149.32,0.51]
[1718279856767,386.3,149.36,149.31,6.7284]
[1718279857702,386.3,149.36,149.31,6.5584]
[1718279857908,386.3,149.36,149.29,15.9831]
[1718279859281,386.3,149.36,149.27,6.4437]
[1718279859993,22.62,149.37,149.27,6.4437]
[1718279862571,100.0,149.36,149.27,6.4437]
[1718279863203,100.0,149.36,149.25,15.0442]
[1718279863409,20.0,149.35,149.25,15.0442]
[1718279865089,20.0,149.35,149.24,6.1209]
[1718279865288,30.0,149.32,149.24,6.1209]
[1718279866011,30.0,149.32,149.25,45.68]
[1718279866374,30.0,149.32,149.24,6.1209]